Workbook

Sheet Instructions
B1: ASSET INVENTORY REPORT FORM
H2: Kentucky Division of Water’s Asset Inventory Report, as required by 401 KAR 5:006
B3: In accordance with 401 KAR 5:006, regional planning agencies are required to submit an asset inventory report to the Cabinet, if: (a) It has been ten (10) years since the regional planning agency submitted a regional facility plan or asset inventory report; and (b) the regional planning agency does not meet the requirements established in Section 2(2) of the regulation. The asset inventory report requires regional planning agencies to take inventory of the physical assets of their wastewater system(s), assess their condition, prioritize capital needs, and develop a plan for funding those needs. By incorporating this planning tool into their daily operations, the Cabinet expects regional planning agencies to achieve the following benefits:
C4: a. Reduce overall cost of system operation and maintenance;
C5: b. Target capital investments toward critical assets;
C6: c. Improve compliance record and remediate or correct illegal overflows or bypasses;
C7: d. Acquire a better understanding of treatment and/or collection system components;
C8: e. Reduce borrowing costs. Funding agencies prefer lending to municipalities which properly manage and operate their assets;
C9: f. Potentially improve bond credit ratings;
C10: g. Make a sound case for rate increases to local governing boards and rate payers;
C11: h. Prolong the useful life of their assets. Knowing the condition of assets allows regional planning agencies to make timely repairs; and
C12: i. Reduce duplication of efforts and improve the allocation of staff time and other resources.
B13: A complete report consists of this form and copies of supporting documentation. All regional planning agencies that wish to use this report to demonstrate compliance with the requirements of 401 KAR 5:006, Section 4 must complete all seven sections of the report and provide copies of the supporting documentation required under section VI. This report form consists of seven (7) sections:
C14: I. REGIONAL PLANNING AGENCY DATA
C15: II. REVENUES AND EXPENSES
C16: III. ASSET INVENTORY
C17: IV. PROJECT PRIORITIZATION
C18: V. FUNDING PLAN
C19: VI. COPIES OF SUPPORTING DOCUMENTATION
C20: VII. CERTIFICATION
B21: Most of the information required in the form is self-explanatory. The instructions in some of the sections are given to highlight some of the information that may require interpretation or additional clarification. You may add extra pages for entering additional asset inventory information especially ft you are a regional planning agency with multiple treatment plants. If you need to include additional information, attach the extra pages and put the question number next to your answers and/or copy and paste the asset inventory tables on the additional pages. It’s quite likely that all of the details of the asset inventory presented in this report will not apply to every wastewater system. If the parameter does not apply then indicate by entering N/A in the blank or modify the worksheets so they conform to the particular needs of your system. For additional information or assistance, contact the Kentucky Division of Water, Wastewater Planning Section (502) 564-3410.
B25: I. REGIONAL PLANNING AGENCY DATA. These subsections provide the basic information necessary to identify and characterize the system. The point of contact information must include an organization and an individual. The address can be a mailing address (e.g., P.O. Box). The physical location of the facility is required for treatment plants only. The address should be the physical location of the facility, and not a P.O. Box. Descriptive addresses are acceptable if no physical address exists.
C26: 1. Regional Planning Agency Information. Basic system information.
C27: 2. Discharge Information. Facilities may have multiple discharge types (e.g., discharge to another facility, subsurface discharge, outfall to surface waters, reuse). Additionally, one or more facilities may discharge to the facility. Please review and enter discharge information carefully. If multiple discharges apply, enter percentages which must add to up 100%.
C28: 3. Facility Effluent Treatment Level. Please indicate the level of treatment available at the treatment plant. Current Treatment Level should be selected if the facility is or will be in operation as of the date of report submittal. Projected Treatment Level should be entered if the facility will be in operation for all or part of the 10-year period after the date of report submittal. Treatment levels include primary (45mg/l<BOD; process in which the effluent is treated to remove floating debris and solids by screening and sedimentation); advanced primary (process in which chemicals are added to further treat primary effluent and increase the amount of solid matter removed); secondary (the effluent must meet the minimum removal standards for Biochemical Oxygen Demand, total suspended solids, and pH); and advanced (a level of treatment that is more stringent than secondary treatment or produces a significant reduction in nonconventional or toxic pollutants present in the facility’s effluent; the treatment level is considered advanced if the BOD permit limit is less than 20 mg/l or the facility has one or more advanced treatment processes.
C29: 4. Facility Type. Enter all the facility types that apply to the system. Facility type includes treatment plant, collection (combined sewers, separate sewers, interceptor sewers, and biosolids handling facility. Indicate whether the facility is currently used by placing a check mark in “Present” column(s) or whether it is planned to be used in the future by placing a check mark in “Projected” column(s).
C30: 5. Flow and Population Served. Each year's data must be based on a 12-month time period. Subcategories a through d apply to treatment plants. If applicable, indicate the projected design capacity for treatment plants. The population served information table has two main components; each must be completed for the present condition and the 10-year projected condition.
C31: 6. Treatment Plant Discharge Limits. List the discharge limits for each parameter listed in the most current KPDES permits. If the parameter does not apply to the permits, then indicate by entering N/A in the blank.
B36: II. REVENUES AND EXPENSES. Data items in this section are necessary to understand the financial condition of the system. The information provided can be estimated or based upon audit reports.
B41: III. ASSET INVENTORY. This is the most extensive section of the report and will allow the Division of Water to evaluate the types of assets, anticipated failure and replacement or rehabilitation costs. The data items required should be readily available to most operators or managers. Most systems already have some form of inventory established but not centralized. The following asset inventory is designed to collect data and information into a centralized format. The inventory provides a format where information and data will be listed in the categorized asset tables and include corresponding characteristics, assigned assessment and failure mode ratings, and assigned strategies to renew or maintain the assets. Taking an initial inventory of assets can be a labor intensive job. Systems should start by identifying their critical assets to prepare the initial inventory. The collection of assessment data and information can be done through the direct inspection, observation, repairs, operation and maintenance routines, investigation/ monitoring/reporting, and analysis of data. Because systems need to continue to collect new data and information and build upon initial inventories, an ongoing, organized, and systematic collection of data should be established so the process develops. One of the most important outcomes of the assessments is determining the remaining useful life of an asset. A number of factors can affect the useful life of assets, including routine service and proper maintenance, excessive use, and environmental conditions such as topography, soil, or climate.
B42: 1. What is the State of My Assets? Assessing the state of assets is one of the core components of developing an asset inventory. It provides the critical information needed to assess condition, performance and reliability of system components. The measure of performance for a wastewater system can be based on four critical areas: customer service level, regulatory compliance, risk to public health and safety, and environmental protection. Conduct assessments on the condition, performance and reliability of current wastewater system assets using the definitions and tables below and assign the ratings to the following tables. Assessments are to be evaluated on a scale of 1 to 5.
B43: · Current Condition- Rates the condition of the asset. The higher the number the better the condition of the asset.
B44: · Current Performance- Rates whether the asset meets capacity requirements now and in the future. The higher the number the better the performance of the asset.
B45: · Current Reliability- Rates the asset based on its frequency of breaking down. The higher the number the better the reliability of the asset.
B46: a. Current Condition Assessment
B47: Rating | D47: Remaining Useful Life | G47: Maintenance Level
B48: 5 | D48: New or Excellent Condition | G48: Normal Preventive Maintenance
B49: 4 | D49: Minor Defects Only | G49: Normal Preventive Maintenance, Minor Corrective Maintenance
B50: 3 | D50: Moderate Deterioration | G50: Normal Preventive Maintenance, Major Corrective Maintenance
B51: 2 | D51: Signification Deterioration | G51: Major repair, rehabilitate
B52: 1 | D52: Beyond Useful Life | G52: Unit Must Be Replaced
B53: b. Current Performance Assessment
B54: Rating | D54: Description
B55: 5 | D55: Exceeds/Meets all Performance Targets
B56: 4 | D56: Minor Performance Deficiencies
B57: 3 | D57: Considerable Performance Deficiencies
B58: 2 | D58: Major Performance Deficiencies
B59: 1 | D59: Fails to Meet Performance Targets
B60: c. Current Reliability Assessment
B61: Rating | D61: Remaining Life | G61: Frequency of Failure
B62: 5 | D62: New | G62: Almost Negligible
B63: 4 | D63: Seldom Breakdown | G63: More than 10 years
B64: 3 | D64: Occasional Breakdown | G64: Every 5 Years
B65: 2 | D65: Periodic Breakdown | G65: Every 2 Years
B66: 1 | D66: Continuous Breakdown | G66: 1 Year or Less
B70: 2. Which Assets are the Most Critical? Critical assets have high failure risks (old, poor condition, etc.) and/or major consequences if they do fail (major expense, system failure, safety concerns, environmental damage, water quality impacts, etc.). Some components of a system should take precedence for investment based on risk due to age, condition, and importance or consequence. Components found to be in poor condition, or with severe defects and high failure modes, should be addressed as soon as possible after they are discovered. Less severe defects can be prioritized for more frequent inspection or cleaning, repair, rehabilitation, or replacement. Conduct critical rating assessments of current wastewater system assets using the definitions and tables below and assign the ratings to the following tables:
B72: · Consequence of Failure- Rates the asset based on the consequences of failure. Failure of some assets could be detrimental to the total system or facility components. The lower the number the lower the risk.
B73: · Probability of Failure- Rates the asset based on the percentage of effective life consumed- as an asset ages the likelihood of failure increases. The lower the number the lower the probability of failure. Enter the percentage shown.
B74: · Redundancy- Rates the criticality of the assets based on the availability of backup. Available backup reduces risk.
C75: a. Consequence of Failure
C76: Rating | D76: Description | H76: Percentage (%) Affected | I76: Level
C77: 1 | D77: Minor Component Failure | H77: 0 - 25% | I77: Asset
C78: 2 | D78: Major Component Failure | H78: 25 -50% | I78: Asset
C79: 3 | D79: Multiple Asset Failure | H79: 25 - 50% | I79: Facility/Sub-system
C80: 4 | D80: Major Facility Failure | H80: 50 - 100% | I80: Facility
C81: 5 | D81: Minor Sanitary System Failure | H81: 20 - 40% | I81: Total System
C82: 6 | D82: Medium Sanitary System Failure | H82: 40 - 60% | I82: Total System
C83: 7 | D83: Intermdetiate Sanitary System Failure | H83: 60 - 80% | I83: Total System
C84: 8 | D84: Significant Sanitary System Failure | H84: 80 - 90% | I84: Total System
C85: 9 | D85: Total | H85: 90 - 100 | I85: Total System
C86: b. Probablity of Falure
C87: Rating | E87: Percentage (%) of Effective Life Consumed
C88: 1 | E88: 0.2
C89: 2 | E89: 0.4
C90: 3 | E90: 0.6
C91: 4 | E91: 0.8
C92: 5 | E92: 1
C93: c. Curent Redundancy Assessement
C94: Rating | D94: Level of Redundancy | G94: Reduce Probability of Failure by:
C95: 1 | D95: 50% Backup | G95: 0.5
C96: 2 | D96: 100% Backup | G96: 0.9
C97: 3 | D97: 200% Secondary Backup | G97: 0.98
B100: 3. Renewal and Maintenance Strategy: This asset inventory report will help regional planning agencies acquire a better understanding of their systems and make more informed decisions about future capital investments. An important part of conducting an inventory is determining a strategy of how to manage assets through renewal and maintenance. At some point, continuing to repair the asset will no longer be cost-effective and it will need to be rehabilitated or replaced. A preventive maintenance program will enable you to maximize the useful lives of your assets and can help you avoid problems and cut down or delay replacement costs. Conduct assessments on strategies to renew or maintain assets using the definitions and tables below and assign the options to the following tables:
B101: · Renewal Strategy- Record decisions on what will be done with each asset.
B102: · Maintenance Strategy- Record decisions on the type of maintenance tactics to perform based on the selected renewal strategy.
B103: · Recommended Renewal Date- Renewal date is equivalent to the end of useful life date of an asset per the manufacturer. You may enter a different date based on your renewal strategy. This can be used in calculating the future value of the renewal strategy.
B104: · Costs of Renewal Option- For this example assume all assets will be replaced. Enter your estimate of what the renewal strategy will cost in today’s dollars
C105: a. Renewal Strategies
C106: Option | D106: Description | H106: Type
C107: 1 | D107: Do Nothing | H107: Non-Capital
C108: 2 | D108: Continue with Status Quo | H108: Non-Capital
C109: 3 | D109: Maintain Differently | H109: Non-Capital
C110: 4 | D110: Operate Differently | H110: Non-Capital
C111: 5 | D111: Repair | H111: Capital
C112: 6 | D112: Refurbish/Rehabilitate | H112: Capital
C113: 7 | D113: Replace Asset with Similar Asset | H113: Capital
C114: 8 | D114: Replace with a New or Improved Asset | H114: Capital
C115: 9 | D115: Reduce Levels of Service or Cause of Failure | H115: Non-Asset
C116: b. Maintenance Strategy
C117: Option | D117: Maintenance Tactic
C118: 1 | D118: PM - Preventive Maintenance
C119: 2 | D119: CBM - Condition based maintenance
C120: 3 | D120: UBM - Usage based maintenance
C121: 4 | D121: RTF - Run to failure
C122: 5 | D122: CM - Corrective maintenance
C125: Asset Inventory Table Instructions
C126: Putting together the inventory requires organization of assets and decisions regarding what level of asset should be included. This format allows for any level of detail desired, and is capable of classifying a great deal of information about the assets. Key points are to (1) organize the asset inventory from large to small units; (2) gather information and insert into the appropriate categories; (3) after basic hierarchy is established, additional information can be added as it is obtained (Refer to the table of Examples of Asset Categories and Category Hierarchy).
C127: List as many assets within each categorized table as you can and as many characteristics of each asset. Characteristics will vary by asset type. Use the assessment and strategy ratings defined above while taking into account the current condition of each asset, its service history, and your experience based on the characteristics of your system (e.g., weather conditions, operation and maintenance routines). Get the best information you can, but use estimates if you need to. For the collection system tables (Tables 4 through 7), grouping of collection lines is recommended. For example, if collection lines were put into place in the same area during the same period of time and are composed of the same diameter and material, then enter the total linear footage of the same group instead of segmenting them (e.g., downtown, 10,000 feet, 8 inch diameter, Cast Iron, circa 1950).
C128: Examples of Asset Categories and Category Hierarchy
C129: Asset Categories | F129: Asset Category Hierarchy
C130: Headworks | F130: Screening- Bar Screens, Screens
F131: Grit Removal- Blower, Auger, Grit Pumps, Pipes/Valves
F132: Electrical- Motor Control
C133: Raw Sewage Pumping | F133: Pumps- Pump #1, Pump #2, Pipes/Valves
F134: Electrical- Motor Control Center, Generator
F135: Instrumentation- Flow Meter, Level Sensors
C136: Pump Stations
C137: Building and Grounds
C138: Panels- Alarm/Electrical
C139: Collection Structure | F139: Manholes- Grinder Pumps
C140: Collection System Pipe | F140: Gravity
F141: Force Main- Air-Relief Valves
C142: Collection Systen Lift Station | F142: Pumps- Pump 1,2,3, etc., Valve and Piping
F143: Instrumentation- Flow Meter
F144: Electrical- Motor Control, Standby Generator
C145: Treatment Unit Processes
B150: IV. Project Prioritization and Fund Plan Table Instructions: Preparing the asset inventory report allows regional planning agencies to prioritize rehabilitation and replacement projects. The estimated cost of rehabilitation and replacement activities associated with your highest priority assets are required for completing the funding plan worksheet. Gather information on all of the costs associated with the rehabilitation or replacement of an asset and provide a citation for the source of the estimate. Costs should only account for funds you will need to replace or rehabilitate your capital assets, and should not include routine operation and maintenance costs. To determine what a rehabilitation or replacement project might cost, you can:
C151: 1. | D151: Consult with your engineer;
C152: 2. | D152: Ask local contractors for estimated costs;
C153: 3. | D153: Contact equipment manufacturers; and
C154: 4. | D154: Talk to other systems about the cost of their rehabilitations or replacements.
B155: It is important that you update this worksheet every year, and as new information becomes available, because your system’s priorities and finances may change. Costs of new assets or rehabilitations may also change. Updating your worksheet annually and setting aside the required reserve amount will help ensure that you have enough money to cover the cost of future rehabilitation and replacement projects.
B156: It may be overwhelming to see how much money you should be saving each year to fund the replacement and rehabilitation of your assets. You can fund capital improvements by saving the total per year cost of replacements in a reserve account. Alternatively, you can use the money you already have more efficiently and put the savings towards replacing and rehabilitating your assets. Here are some strategies that could help you use your current resources more efficiently or raise additional funds:
C157: 1. | D157: Form partnerships with other wastewater systems to reduce operating costs. This may allow you to simplify management and obtain bulk purchasing agreements.
C158: 2. | D158: Consider increasing rates to raise revenue.
C159: 3. | D159: Apply for financial assistance. Banks and government funding agencies can help fund infrastructure projects such as treatment system upgrades and collection line repairs. For large projects, you may want to research funding options such as state and federal clean water grant and loan programs.
B160: Key decision makers (for example, the board of directors, elected officials of the community, or owners of manufactured housing associations) make critical decisions about the finances of wastewater systems. For this reason, they need to understand the financial needs related to the rehabilitation and replacement of the system’s equipment and assets. The information compiled in this report should be presented to key decision makers and incorporated into the annual budget. This information should be reviewed annually and modified as necessary. The decision makers can also present this information to the public at board meetings.

Sheet Agency Information
A1: 1 | B1: Regional Planning Agency Information
B2: Regional Planning Agency Name
B3: Mailing Address
B5: City | F5: State | J5: Zip
B6: Physical Address (if different)
B8: City | G8: Zip
B9: Contact Person
B10: Title
B11: Telephone Number
B12: Fax Number
B13: E-mail Address
B14: Website
B15: KPDES/KISOP Number
B17: Name of watershed(s) within the planning area | I17: Hydrological Unit Code (HUC) 10
B22: Waterbodies within the planning area listed as impaired waters in the Integrated Report to Congress on Water Quality in Kentucky.
A33: 2 | B33: Discharge Information
B34: Discharge Type (e.g. discharge to another facility, subsurface discharge, outfall to surface waters, reuse)
B39: Name of Receiving Water(s) | G39: Milepoint | I39: or Latitude and Longitude
B44: Does the WWTP discharge its effluent in another manner besides directly to a stream (e.g. land application, underground percolation, hydrologic controlled release [HCR], well injection)? If yes, provide method.
B49: Does the system discharge to or receive wastewater from other municipalities or service area? Provide applicable names and KPDES and/or KISOP permit numbers.

Sheet Facility Effluent Treatment
A1: 3 | B1: Facility Effluent Treatment Level
A2: What levels of treatment are provided? Check all that apply.
B3: Preliminary | F3: Secondary
B4: Primary | F4: Advanced
B5: Other Describe: | F5: Other Describe:
A7: Projected (Indicate the level of treatment and projected date):
A9: 4 | B9: Facility Type
A10: Facility Type | E10: Present | G10: Projected
B11: Headworks
B13: Treatment
B15: Disinfectikon
B17: biosolids
A25: 5 | B25: Flow and Population Served. Each year's data must be based on a 12-month time period
E26: Present | H26: Projected in 10 years
A27: a. | B27: Design Flow Rate (mgd)
E28: 2 Yrs Ago | G28: Last Year | I28: This Year
A29: b. | B29: Annual average daily flow rate (mgd)
E30: 2 Yrs Ago | G30: Last Year | I30: This Year
A31: c. | B31: Maximum (Peak) daily flow rate (mgd)
A33: d. | B33: Average daily flow projected in 10 years (mgd)
A35: e. | B35: Average inflow & Infiltration. Estimates should be based on most recent data (mgd)
E36: Present | H36: Projected in 10 years
A37: f. | B37: Residential flow contribution (mgd)
E38: Present | H38: Projected in 10 years
B39: Commercial/industrial flow contribution (mgd)
B40: (Projections should be based on 1,000 to 1,500 gallons per day/acre)
E41: Present | H41: Projected in 10 years
B42: Population served (persons)
B43: (Calculations should be based on Census data specific to the service area or No. of accounts X 2.5)
E44: Present | H44: Projected in 10 years
B45: Unserved population in the planning area
B47: Does the system have a pretreatment program? | E47: Yes | H47: No
A51: 6 | B51: Treatment Plant Discharge Limits
B52: Parameter | E52: Monthly Average | G52: Daily Maximum | I52: Daily Minimum
B53: Biological Oxygen Demand (BOD5; mg/l) or CBOD5 | J53: mg/l
B55: Total Suspended Solids (TSS; mg/l) | J55: mg/l
B57: Ammonia Nitrogen: Summer | J57: mg/l
C59: Winter | J59: mg/l
B61: Dissolved Oxygen (mg/l) | J61: mg/l
B63: Fecal Coliform (colonies/100ml) | J63: col/100 mls
B65: Escherichia coli (colonies/100ml) | J65: col/100 mls
B67: pH (standard units) | J67: S.U.
B69: Total Residual Chlorine (mg/l) | J69: mg/l
B71: Phosphorus (Total; mg/l) | J71: mg/l
B73: Total Nitrogen (mg/l) | J73: mg/l
B75: Biomonitoring (Tuc) | J75: Tuc

Sheet Revenues & Expenses
A1: 8 | B1: REVENUES AND EXPENSES
J2: Year | N2: Month
A3: 1. | B3: Current Fiscal Year and First Month of the Fiscal Year
A5: 2. | B5: Median Household Income (MHI) of the Service Area | H5: $
J6: Residential | N6: Commercial
A7: 3. | B7: Current User Charge Per Month per 4,000 gallons | H7: $ | M7: $
J8: Residential | N8: Commercial
A9: 4. | B9: Projected User Charge Per Mo. Over Next Two Years per 4,000 gal. $ | M9: $
A11: 5. | B11: Annual Revenues | G11: Enter Expected Future Changes in Revenues (in current year dollars)
D12: Current Year | G12: Year | J12: Year | M12: Year | P12: Year | S12: Year
B13: Total retail user charges
B15: Total wholesale user charges
B17: Interest earned
B19: Funds drawn from reserves
B21: Other revenues
B22: (tap-on fees; impact fees, etc.)
B23: TOTAL | D23: =SUM(D13:E21) -> 0 | G23: =SUM(G13:H21) -> 0 | J23: =SUM(J13:K21) -> 0 | M23: =SUM(M13:N21) -> 0 | P23: =SUM(P13:Q21) -> 0 | S23: =SUM(S13:T21) -> 0
A25: 6. | B25: Annual Expenses | G25: Enter Expected Future Changes in Expenses (in current year dollars)
D26: Current Year | G26: Year | J26: Year | M26: Year | P26: Year | S26: Year
B27: Salaries, wages, benefits
B29: Supplies, equipment, chemicals
B31: Repairs and parts
D32: Electric | G32: Electric | J32: Electric | M32: Electric | P32: Electric | S32: Electric
B33: Utilities
D34: Water | G34: Water | J34: Water | M34: Water | P34: Water | S34: Water
D36: Gas | G36: Gas | J36: Gas | M36: Gas | P36: Gas | S36: Gas
B39: Payments to other facilities
B41: Funds added to reserves
B43: Debt service
B45: Other expenses
B47: TOTAL | D47: =SUM(D27:E45) -> 0 | G47: =SUM(G27:H45) -> 0 | J47: =SUM(J27:K45) -> 0 | M47: =SUM(M27:N45) -> 0 | P47: =SUM(P27:Q45) -> 0 | S47: =SUM(S27:T45) -> 0

Sheet Gravity Pipes-Manholes
B1: Collection System: Gravity Pipes & Manholes - Existing
B2: Description | C2: Description of Manholes | D2: Pipe Length | E2: Pipe Size | F2: Pipe Material | G2: Year Installed | H2: Assessment Ratings | K2: Failure Ratings | N2: Renewal and Maintenance Strategy
C3: (diameter, material, lid type) | D3: Feet | E3: Inches | H3: Condition | I3: Performance | J3: Reliability | K3: Consequence | L3: Probability | M3: Redundancy | N3: Renewal Strategy | O3: Maintenance Strategy | P3: R&M Date | Q3: Estimated Cost of R&M Option $
A4: Column1 | B4: Column2 | C4: Column3 | D4: Column4 | E4: Column5 | F4: Column6 | G4: Column7 | H4: Column8 | I4: Column9 | J4: Column10 | K4: Column11 | L4: Column12 | M4: Column13 | N4: Column14 | O4: Column15 | P4: Column16 | Q4: Column17 | S4: 5
A5: 1 | S5: 4
A6: =+A5+1 -> 2 | S6: 3
A7: =+A6+1 -> 3 | S7: 2
A8: 4 | S8: 1
A9: 5
A10: 6 | S10: 1
A11: 7 | S11: 2
A12: 8 | S12: 3
A13: 9 | S13: 4
A14: 10 | S14: 5
A15: 11 | S15: 6
A16: 12 | S16: 7
A17: 13 | S17: 8
A18: 14 | S18: 9
A19: 15
A20: 16 | S20: 1
A21: 17 | S21: 2
A22: 18 | S22: 3
A23: 19 | S23: 4
A24: 20 | S24: 5
A25: 21
A26: 22 | S26: 1
A27: 23 | S27: 2
A28: 24 | S28: 3
A29: 25
A30: 26
A31: 27
A32: 28
A33: 29
A34: 30
A35: 31
A36: 32
A37: 33
A38: 34
A39: 35
A40: 36
A41: 37
A42: 38
A43: 39
A44: 40
A45: 41
A46: 42
A47: 43
A48: 44
A49: 45
A50: 46
A51: 47
A52: 48
A53: 49
A54: 50
A55: 51
A56: 52
A57: 53
A58: 54
A59: 55
A60: 56
A61: 57
A62: 58
A63: 59
A64: 60
A65: 61
A66: 62
A67: 63
A68: 64
A69: 65
A70: 66
A71: =+A70+1 -> 67
A72: 68
A73: 69
A74: 70
A75: 71
A76: 72
A77: 73
A78: 74
A79: 75
A80: 76
A81: 77
A82: 78
A83: 79
A84: 80
A85: 81
A86: 82
A87: 83
A88: 84
A89: 85
A90: 86
A91: 87
A92: 88
A93: 89
A94: 90
A95: 91
A96: 92
A97: 93
A98: 94
A99: 95
A100: 96
A101: 97
A102: 98
A103: 99
A104: 100
A105: 101
A106: 102
A107: 103
A108: 104
A109: 105
A110: 106
A111: 107
A112: 108
A113: 109
A114: 110
A115: 111
A116: 112
A117: 113
A118: 114
A119: 115
A120: 116
A121: 117
A122: 118
A123: 119
A124: 120
A125: 121
A126: 122
A127: 123
A128: 124
A129: 125
A130: 126
A131: 127
A132: 128
A133: 129
A134: 130
A135: =+A134+1 -> 131
A136: 132
A137: 133
A138: 134
A139: 135
A140: 136
A141: 137
A142: 138
A143: 139
A144: 140
A145: 141
A146: 142
A147: 143
A148: 144
A149: 145
A150: 146
A151: 147
A152: 148
A153: 149
A154: 150
A155: 151
A156: 152
A157: 153
A158: 154
A159: 155
A160: 156
A161: 157
A162: 158
A163: 159
A164: 160
A165: 161
A166: 162
A167: 163
A168: 164
A169: 165
A170: 166
A171: 167
A172: 168
A173: 169
A174: 170
A175: 171
A176: 172
A177: 173
A178: 174
A179: 175
A180: 176
A181: 177
A182: 178
A183: 179
A184: 180
A185: 181
A186: 182
A187: 183
A188: 184
A189: 185
A190: 186
A191: 187
A192: 188
A193: 189
A194: 190
A195: 191
A196: 192
A197: 193
A198: 194
A199: =+A198+1 -> 195
A200: 196
... 252 more rows

Sheet Proposed Gravity Pipes-Manholes
B1: Collection System Gravity Pipes and Manholes - Proposed Projects
B2: Proposed Project Title | C2: Project Description | D2: Type | H2: Number of New Manholes | I2: Pipe Length | J2: Pipe Size | K2: Pipe Material | L2: Year Planned | M2: If Known | O2: Plans & Specs Approved? | P2: Funding In Place?
D3: Extension | E3: Rehab | F3: Replace | G3: Abandon | M3: Manufacturer's Predicted Life | N3: Estimated Project Cost
I4: Feet | J4: Inches | M4: Years | N4: $ | S4: Yes
A5: Column1 | B5: Column2 | C5: Column3 | D5: Column4 | E5: Column5 | F5: Column6 | G5: Column7 | H5: Column8 | I5: Column9 | J5: Column10 | K5: Column11 | L5: Column12 | M5: Column13 | N5: Column14 | O5: Column15 | P5: Column16 | S5: No
A6: 1
A7: =+A6+1 -> 2
A8: =+A7+1 -> 3
A9: 4
A10: 5
A11: 6
A12: 7
A13: 8
A14: 9
A15: 10
A16: 11
A17: 12
A18: 13
A19: 14
A20: 15
A21: 16
A22: 17
A23: 18
A24: 19
A25: 20
A26: 21
A27: 22
A28: 23
A29: 24
A30: 25
A31: 26
A32: 27
A33: 28
A34: 29
A35: 30
A36: 31
A37: 32
A38: 33
A39: 34
A40: 35
A41: 36
A42: 37
A43: 38
A44: 39
A45: 40
A46: 41
A47: 42
A48: 43
A49: 44
A50: 45
A51: 46
A52: 47
A53: 48
A54: 49
A55: 50
A56: 51
A57: 52
A58: 53
A59: 54
A60: 55
A61: 56
A62: 57
A63: 58
A64: 59
A65: 60
A66: 61
A67: 62
A68: 63
A69: 64
A70: 65
A71: 66
A72: =+A71+1 -> 67
A73: 68
A74: 69
A75: 70
A76: 71
A77: 72
A78: 73
A79: 74
A80: 75
A81: 76
A82: 77
A83: 78
A84: 79
A85: 80
A86: 81
A87: 82
A88: 83
A89: 84
A90: 85
A91: 86
A92: 87
A93: 88
A94: 89
A95: 90
A96: 91
A97: 92
A98: 93
A99: 94
A100: 95
A101: 96
A102: 97
A103: 98
A104: 99
A105: 100
A106: 101
A107: 102
A108: 103
A109: 104
A110: 105
A111: 106
A112: 107
A113: 108
A114: 109
A115: 110
A116: 111
A117: 112
A118: 113
A119: 114
A120: 115
A121: 116
A122: 117
A123: 118
A124: 119
A125: 120
A126: 121
A127: 122
A128: 123
A129: 124
A130: 125
A131: 126
A132: 127
A133: 128
A134: 129
A135: 130
A136: =+A135+1 -> 131
A137: 132
A138: 133
A139: 134
A140: 135
A141: 136
A142: 137
A143: 138
A144: 139
A145: 140
A146: 141
A147: 142
A148: 143
A149: 144
A150: 145
A151: 146
A152: 147
A153: 148
A154: 149
A155: 150
A156: 151
A157: 152
A158: 153
A159: 154
A160: 155
A161: 156
A162: 157
A163: 158
A164: 159
A165: 160
A166: 161
A167: 162
A168: 163
A169: 164
A170: 165
A171: 166
A172: 167
A173: 168
A174: 169
A175: 170
A176: 171
A177: 172
A178: 173
A179: 174
A180: 175
A181: 176
A182: 177
A183: 178
A184: 179
A185: 180
A186: 181
A187: 182
A188: 183
A189: 184
A190: 185
A191: 186
A192: 187
A193: 188
A194: 189
A195: 190
A196: 191
A197: 192
A198: 193
A199: 194
A200: =+A199+1 -> 195
... 252 more rows

Sheet Pressure Lines
B1: Pressure Line/Force Mains and Air-Release Valves - Existing
B2: Description | C2: Description of AR Valves | D2: Pipe Length | E2: Pipe Size | F2: Pipe Material | G2: Year Installed | H2: Assessment Ratings | K2: Failure Ratings | N2: Renewal and Maintenance Strategy
C3: (size and type) | D3: Feet | E3: Inches | H3: Condition | I3: Performance | J3: Reliability | K3: Consequence | L3: Probability | M3: Redundancy | N3: Renewal Strategy | O3: Maintenance Strategy | P3: R&M Date | Q3: Estimated Cost of R&M Option $
A4: Column1 | B4: Column2 | C4: Column3 | D4: Column4 | E4: Column5 | F4: Column6 | G4: Column7 | H4: Column8 | I4: Column9 | J4: Column10 | K4: Column11 | L4: Column12 | M4: Column13 | N4: Column14 | O4: Column15 | P4: Column16 | Q4: Column17 | S4: 5
A5: 1 | S5: 4
A6: =+A5+1 -> 2 | S6: 3
A7: =+A6+1 -> 3 | S7: 2
A8: 4 | S8: 1
A9: 5
A10: 6 | S10: 1
A11: 7 | S11: 2
A12: 8 | S12: 3
A13: 9 | S13: 4
A14: 10 | S14: 5
A15: 11 | S15: 6
A16: 12 | S16: 7
A17: 13 | S17: 8
A18: 14 | S18: 9
A19: 15
A20: 16 | S20: 1
A21: 17 | S21: 2
A22: 18 | S22: 3
A23: 19 | S23: 4
A24: 20 | S24: 5
A25: 21
A26: 22 | S26: 1
A27: 23 | S27: 2
A28: 24 | S28: 3
A29: 25
A30: 26
A31: 27
A32: 28
A33: 29
A34: 30
A35: 31
A36: 32
A37: 33
A38: 34
A39: 35
A40: 36
A41: 37
A42: 38
A43: 39
A44: 40
A45: 41
A46: 42
A47: 43
A48: 44
A49: 45
A50: 46
A51: 47
A52: 48
A53: 49
A54: 50
A55: 51
A56: 52
A57: 53
A58: 54
A59: 55
A60: 56
A61: 57
A62: 58
A63: 59
A64: 60
A65: 61
A66: 62
A67: 63
A68: 64
A69: 65
A70: 66
A71: =+A70+1 -> 67
A72: 68
A73: 69
A74: 70
A75: 71
A76: 72
A77: 73
A78: 74
A79: 75
A80: 76
A81: 77
A82: 78
A83: 79
A84: 80
A85: 81
A86: 82
A87: 83
A88: 84
A89: 85
A90: 86
A91: 87
A92: 88
A93: 89
A94: 90
A95: 91
A96: 92
A97: 93
A98: 94
A99: 95
A100: 96
A101: 97
A102: 98
A103: 99
A104: 100
A105: 101
A106: 102
A107: 103
A108: 104
A109: 105
A110: 106
A111: 107
A112: 108
A113: 109
A114: 110
A115: 111
A116: 112
A117: 113
A118: 114
A119: 115
A120: 116
A121: 117
A122: 118
A123: 119
A124: 120
A125: 121
A126: 122
A127: 123
A128: 124
A129: 125
A130: 126
A131: 127
A132: 128
A133: 129
A134: 130
A135: =+A134+1 -> 131
A136: 132
A137: 133
A138: 134
A139: 135
A140: 136
A141: 137
A142: 138
A143: 139
A144: 140
A145: 141
A146: 142
A147: 143
A148: 144
A149: 145
A150: 146
A151: 147
A152: 148
A153: 149
A154: 150
A155: 151
A156: 152
A157: 153
A158: 154
A159: 155
A160: 156
A161: 157
A162: 158
A163: 159
A164: 160
A165: 161
A166: 162
A167: 163
A168: 164
A169: 165
A170: 166
A171: 167
A172: 168
A173: 169
A174: 170
A175: 171
A176: 172
A177: 173
A178: 174
A179: 175
A180: 176
A181: 177
A182: 178
A183: 179
A184: 180
A185: 181
A186: 182
A187: 183
A188: 184
A189: 185
A190: 186
A191: 187
A192: 188
A193: 189
A194: 190
A195: 191
A196: 192
A197: 193
A198: 194
A199: =+A198+1 -> 195
A200: 196
... 252 more rows

Sheet Proposed Pressure Lines
B1: Pressure Line/Force Main and Air-Release Valves - Proposed Projects
B2: Proposed Project Title | C2: Project Description | D2: Type | H2: Number of New AR Valves | I2: Pipe Length | J2: Pipe Size | K2: Pipe Material | L2: Year Planned | M2: If Known | O2: Plans & Specs Approved? | P2: Funding In Place?
D3: Expansion | E3: Rehab | F3: Replace | G3: Abandon | M3: Manufacturer's Predicted Life | N3: Estimated Project Cost
I4: Feet | J4: Inches | M4: Years | N4: $ | S4: Yes
A5: Column1 | B5: Column2 | C5: Column3 | D5: Column4 | E5: Column5 | F5: Column6 | G5: Column7 | H5: Column8 | I5: Column9 | J5: Column10 | K5: Column11 | L5: Column12 | M5: Column13 | N5: Column14 | O5: Column15 | P5: Column16 | S5: No
A6: 1
A7: =+A6+1 -> 2
A8: =+A7+1 -> 3
A9: 4
A10: 5
A11: 6
A12: 7
A13: 8
A14: 9
A15: 10
A16: 11
A17: 12
A18: 13
A19: 14
A20: 15
A21: 16
A22: 17
A23: 18
A24: 19
A25: 20
A26: 21
A27: 22
A28: 23
A29: 24
A30: 25
A31: 26
A32: 27
A33: 28
A34: 29
A35: 30
A36: 31
A37: 32
A38: 33
A39: 34
A40: 35
A41: 36
A42: 37
A43: 38
A44: 39
A45: 40
A46: 41
A47: 42
A48: 43
A49: 44
A50: 45
A51: 46
A52: 47
A53: 48
A54: 49
A55: 50
A56: 51
A57: 52
A58: 53
A59: 54
A60: 55
A61: 56
A62: 57
A63: 58
A64: 59
A65: 60
A66: 61
A67: 62
A68: 63
A69: 64
A70: 65
A71: 66
A72: =+A71+1 -> 67
A73: 68
A74: 69
A75: 70
A76: 71
A77: 72
A78: 73
A79: 74
A80: 75
A81: 76
A82: 77
A83: 78
A84: 79
A85: 80
A86: 81
A87: 82
A88: 83
A89: 84
A90: 85
A91: 86
A92: 87
A93: 88
A94: 89
A95: 90
A96: 91
A97: 92
A98: 93
A99: 94
A100: 95
A101: 96
A102: 97
A103: 98
A104: 99
A105: 100
A106: 101
A107: 102
A108: 103
A109: 104
A110: 105
A111: 106
A112: 107
A113: 108
A114: 109
A115: 110
A116: 111
A117: 112
A118: 113
A119: 114
A120: 115
A121: 116
A122: 117
A123: 118
A124: 119
A125: 120
A126: 121
A127: 122
A128: 123
A129: 124
A130: 125
A131: 126
A132: 127
A133: 128
A134: 129
A135: 130
A136: =+A135+1 -> 131
A137: 132
A138: 133
A139: 134
A140: 135
A141: 136
A142: 137
A143: 138
A144: 139
A145: 140
A146: 141
A147: 142
A148: 143
A149: 144
A150: 145
A151: 146
A152: 147
A153: 148
A154: 149
A155: 150
A156: 151
A157: 152
A158: 153
A159: 154
A160: 155
A161: 156
A162: 157
A163: 158
A164: 159
A165: 160
A166: 161
A167: 162
A168: 163
A169: 164
A170: 165
A171: 166
A172: 167
A173: 168
A174: 169
A175: 170
A176: 171
A177: 172
A178: 173
A179: 174
A180: 175
A181: 176
A182: 177
A183: 178
A184: 179
A185: 180
A186: 181
A187: 182
A188: 183
A189: 184
A190: 185
A191: 186
A192: 187
A193: 188
A194: 189
A195: 190
A196: 191
A197: 192
A198: 193
A199: 194
A200: =+A199+1 -> 195
... 252 more rows

Sheet Pump Stations
B1: Pump Stations - Existing
B2: Pump Station Name | C2: Type | D2: Capacity | E2: Total Dynamic Head | F2: Year Installed | G2: Assessment Ratings | J2: Failure Ratings | M2: Renewal and Maintenance Strategy
C3: (e.g. submersible, centrifugal, etc.) | G3: Condition | H3: Performance | I3: Reliability | J3: Consequence | K3: Probability | L3: Redundancy | M3: Renewal Strategy | N3: Maintenance Strategy | O3: R&M Date | P3: Estimated Cost of R&M Option $
D4: gpm | E4: Feet | S4: 5
A5: Column1 | B5: Column2 | C5: Column3 | D5: Column4 | E5: Column5 | F5: Column6 | G5: Column7 | H5: Column8 | I5: Column9 | J5: Column10 | K5: Column11 | L5: Column12 | M5: Column13 | N5: Column14 | O5: Column15 | P5: Column16 | S5: 4
A6: 1 | S6: 3
A7: =+A6+1 -> 2 | S7: 2
A8: =+A7+1 -> 3 | S8: 1
A9: 4
A10: 5 | S10: 1
A11: 6 | S11: 2
A12: 7 | S12: 3
A13: 8 | S13: 4
A14: 9 | S14: 5
A15: 10 | S15: 6
A16: 11 | S16: 7
A17: 12 | S17: 8
A18: 13 | S18: 9
A19: 14
A20: 15 | S20: 1
A21: 16 | S21: 2
A22: 17 | S22: 3
A23: 18 | S23: 4
A24: 19 | S24: 5
A25: 20
A26: 21 | S26: 1
A27: 22 | S27: 2
A28: 23 | S28: 3
A29: 24
A30: 25
A31: 26
A32: 27
A33: 28
A34: 29
A35: 30
A36: 31
A37: 32
A38: 33
A39: 34
A40: 35
A41: 36
A42: 37
A43: 38
A44: 39
A45: 40
A46: 41
A47: 42
A48: 43
A49: 44
A50: 45
A51: 46
A52: 47
A53: 48
A54: 49
A55: 50
A56: 51
A57: 52
A58: 53
A59: 54
A60: 55
A61: 56
A62: 57
A63: 58
A64: 59
A65: 60
A66: 61
A67: 62
A68: 63
A69: 64
A70: 65
A71: 66
A72: =+A71+1 -> 67
A73: 68
A74: 69
A75: 70
A76: 71
A77: 72
A78: 73
A79: 74
A80: 75
A81: 76
A82: 77
A83: 78
A84: 79
A85: 80
A86: 81
A87: 82
A88: 83
A89: 84
A90: 85
A91: 86
A92: 87
A93: 88
A94: 89
A95: 90
A96: 91
A97: 92
A98: 93
A99: 94
A100: 95
A101: 96
A102: 97
A103: 98
A104: 99
A105: 100
A106: 101
A107: 102
A108: 103
A109: 104
A110: 105
A111: 106
A112: 107
A113: 108
A114: 109
A115: 110
A116: 111
A117: 112
A118: 113
A119: 114
A120: 115
A121: 116
A122: 117
A123: 118
A124: 119
A125: 120
A126: 121
A127: 122
A128: 123
A129: 124
A130: 125
A131: 126
A132: 127
A133: 128
A134: 129
A135: 130
A136: =+A135+1 -> 131
A137: 132
A138: 133
A139: 134
A140: 135
A141: 136
A142: 137
A143: 138
A144: 139
A145: 140
A146: 141
A147: 142
A148: 143
A149: 144
A150: 145
A151: 146
A152: 147
A153: 148
A154: 149
A155: 150
A156: 151
A157: 152
A158: 153
A159: 154
A160: 155
A161: 156
A162: 157
A163: 158
A164: 159
A165: 160
A166: 161
A167: 162
A168: 163
A169: 164
A170: 165
A171: 166
A172: 167
A173: 168
A174: 169
A175: 170
A176: 171
A177: 172
A178: 173
A179: 174
A180: 175
A181: 176
A182: 177
A183: 178
A184: 179
A185: 180
A186: 181
A187: 182
A188: 183
A189: 184
A190: 185
A191: 186
A192: 187
A193: 188
A194: 189
A195: 190
A196: 191
A197: 192
A198: 193
A199: 194
A200: =+A199+1 -> 195
... 254 more rows

Sheet Proposed Pump Stations
B1: Pump Stations - Proposed Projects
B2: Proposed Project Title | C2: Pump Station Name | D2: Type | H2: Type | I2: Capacity | J2: Total Dynamic Head | K2: Year Planned | L2: If Known | N2: Plans & Specs Approved? | O2: Funding In Place?
D3: Expansion | E3: Rehab | F3: Replace | G3: Abandon | H3: e.g. submersible, centrifugal, etc.) | L3: Manufacturer's Predicted Life | M3: Estimated Project Cost
I4: gpm | J4: Feet | L4: Years | M4: $ | S4: Yes
A5: Column1 | B5: Column2 | C5: Column3 | D5: Column4 | E5: Column5 | F5: Column6 | G5: Column7 | H5: Column8 | I5: Column9 | J5: Column10 | K5: Column11 | L5: Column12 | M5: Column13 | N5: Column14 | O5: Column15 | S5: No
A6: 1
A7: =+A6+1 -> 2
A8: =+A7+1 -> 3
A9: 4
A10: 5
A11: 6
A12: 7
A13: 8
A14: 9
A15: 10
A16: 11
A17: 12
A18: 13
A19: 14
A20: 15
A21: 16
A22: 17
A23: 18
A24: 19
A25: 20
A26: 21
A27: 22
A28: 23
A29: 24
A30: 25
A31: 26
A32: 27
A33: 28
A34: 29
A35: 30
A36: 31
A37: 32
A38: 33
A39: 34
A40: 35
A41: 36
A42: 37
A43: 38
A44: 39
A45: 40
A46: 41
A47: 42
A48: 43
A49: 44
A50: 45
A51: 46
A52: 47
A53: 48
A54: 49
A55: 50
A56: 51
A57: 52
A58: 53
A59: 54
A60: 55
A61: 56
A62: 57
A63: 58
A64: 59
A65: 60
A66: 61
A67: 62
A68: 63
A69: 64
A70: 65
A71: 66
A72: =+A71+1 -> 67
A73: 68
A74: 69
A75: 70
A76: 71
A77: 72
A78: 73
A79: 74
A80: 75
A81: 76
A82: 77
A83: 78
A84: 79
A85: 80
A86: 81
A87: 82
A88: 83
A89: 84
A90: 85
A91: 86
A92: 87
A93: 88
A94: 89
A95: 90
A96: 91
A97: 92
A98: 93
A99: 94
A100: 95
A101: 96
A102: 97
A103: 98
A104: 99
A105: 100
A106: 101
A107: 102
A108: 103
A109: 104
A110: 105
A111: 106
A112: 107
A113: 108
A114: 109
A115: 110
A116: 111
A117: 112
A118: 113
A119: 114
A120: 115
A121: 116
A122: 117
A123: 118
A124: 119
A125: 120
A126: 121
A127: 122
A128: 123
A129: 124
A130: 125
A131: 126
A132: 127
A133: 128
A134: 129
A135: 130
A136: =+A135+1 -> 131
A137: 132
A138: 133
A139: 134
A140: 135
A141: 136
A142: 137
A143: 138
A144: 139
A145: 140
A146: 141
A147: 142
A148: 143
A149: 144
A150: 145
A151: 146
A152: 147
A153: 148
A154: 149
A155: 150
A156: 151
A157: 152
A158: 153
A159: 154
A160: 155
A161: 156
A162: 157
A163: 158
A164: 159
A165: 160
A166: 161
A167: 162
A168: 163
A169: 164
A170: 165
A171: 166
A172: 167
A173: 168
A174: 169
A175: 170
A176: 171
A177: 172
A178: 173
A179: 174
A180: 175
A181: 176
A182: 177
A183: 178
A184: 179
A185: 180
A186: 181
A187: 182
A188: 183
A189: 184
A190: 185
A191: 186
A192: 187
A193: 188
A194: 189
A195: 190
A196: 191
A197: 192
A198: 193
A199: 194
A200: =+A199+1 -> 195
... 252 more rows

Sheet Treatment Unit
B1: Treatment Units (Preliminary, Secondary, Disinfection, Advanced, Biosolids, Handling) - Existing
B2: Treatement Units | D2: Numberof Units | E2: Year Installed | F2: Assessment Ratings | I2: Failure Ratings | L2: Renewal and Maintenance Strategy
C3: Unit Process | F3: Condition | G3: Performance | H3: Reliability | I3: Consequence | J3: Probability | K3: Redundancy | L3: Renewal Strategy | M3: Maintenance Strategy | N3: R&M Date | O3: Estimated Cost of R&M Option $
S4: 5
A5: Column1 | B5: Column2 | C5: Column3 | D5: Column4 | E5: Column5 | F5: Column6 | G5: Column7 | H5: Column8 | I5: Column9 | J5: Column10 | K5: Column11 | L5: Column12 | M5: Column13 | N5: Column14 | O5: Column15 | S5: 4
A6: 1 | S6: 3
A7: =+A6+1 -> 2 | S7: 2
A8: =+A7+1 -> 3 | S8: 1
A9: =+A8+1 -> 4
A10: 5 | S10: 1
A11: 6 | S11: 2
A12: 7 | S12: 3
A13: 8 | S13: 4
A14: 9 | S14: 5
A15: 10 | S15: 6
A16: 11 | S16: 7
A17: 12 | S17: 8
A18: 13 | S18: 9
A19: 14
A20: 15 | S20: 1
A21: 16 | S21: 2
A22: 17 | S22: 3
A23: 18 | S23: 4
A24: 19 | S24: 5
A25: 20
A26: 21 | S26: 1
A27: 22 | S27: 2
A28: 23 | S28: 3
A29: 24
A30: 25
A31: 26
A32: 27
A33: 28
A34: 29
A35: 30
A36: 31
A37: 32
A38: 33
A39: 34
A40: 35
A41: 36
A42: 37
A43: 38
A44: 39
A45: 40
A46: 41
A47: 42
A48: 43
A49: 44
A50: 45
A51: 46
A52: 47
A53: 48
A54: 49
A55: 50
A56: 51
A57: 52
A58: 53
A59: 54
A60: 55
A61: 56
A62: 57
A63: 58
A64: 59
A65: 60
A66: 61
A67: 62
A68: 63
A69: 64
A70: 65
A71: 66
A72: 67
A73: =+A72+1 -> 68
A74: 69
A75: 70
A76: 71
A77: 72
A78: 73
A79: 74
A80: 75
A81: 76
A82: 77
A83: 78
A84: 79
A85: 80
A86: 81
A87: 82
A88: 83
A89: 84
A90: 85
A91: 86
A92: 87
A93: 88
A94: 89
A95: 90
A96: 91
A97: 92
A98: 93
A99: 94
A100: 95
A101: 96
A102: 97
A103: 98
A104: 99
A105: 100
A106: 101
A107: 102
A108: 103
A109: 104
A110: 105
A111: 106
A112: 107
A113: 108
A114: 109
A115: 110
A116: 111
A117: 112
A118: 113
A119: 114
A120: 115
A121: 116
A122: 117
A123: 118
A124: 119
A125: 120
A126: 121
A127: 122
A128: 123
A129: 124
A130: 125
A131: 126
A132: 127
A133: 128
A134: 129
A135: 130
A136: 131
A137: =+A136+1 -> 132
A138: 133
A139: 134
A140: 135
A141: 136
A142: 137
A143: 138
A144: 139
A145: 140
A146: 141
A147: 142
A148: 143
A149: 144
A150: 145
A151: 146
A152: 147
A153: 148
A154: 149
A155: 150
A156: 151
A157: 152
A158: 153
A159: 154
A160: 155
A161: 156
A162: 157
A163: 158
A164: 159
A165: 160
A166: 161
A167: 162
A168: 163
A169: 164
A170: 165
A171: 166
A172: 167
A173: 168
A174: 169
A175: 170
A176: 171
A177: 172
A178: 173
A179: 174
A180: 175
A181: 176
A182: 177
A183: 178
A184: 179
A185: 180
A186: 181
A187: 182
A188: 183
A189: 184
A190: 185
A191: 186
A192: 187
A193: 188
A194: 189
A195: 190
A196: 191
A197: 192
A198: 193
A199: 194
A200: 195
... 253 more rows

Sheet Proposed Treatment Unit
B1: Treatment Units - Proposed Projects
B2: Proposed Projects | C2: Treatment Unit | D2: Number of Units | E2: Year Planned | F2: If Known | H2: Plans & Specs Approved? | I2: Funding In Place?
F3: Manufacturer's Predicted Life | G3: Estimated Project Cost
F4: Years | G4: $ | M4: Yes
A5: Column1 | B5: Column2 | C5: Column3 | D5: Column4 | E5: Column5 | F5: Column6 | G5: Column7 | H5: Column8 | I5: Column9 | M5: No
A6: 1
A7: =+A6+1 -> 2
A8: =+A7+1 -> 3
A9: =+A8+1 -> 4
A10: 5
A11: 6
A12: 7
A13: 8
A14: 9
A15: 10
A16: 11
A17: 12
A18: 13
A19: 14
A20: 15
A21: 16
A22: 17
A23: 18
A24: 19
A25: 20
A26: 21
A27: 22
A28: 23
A29: 24
A30: 25
A31: 26
A32: 27
A33: 28
A34: 29
A35: 30
A36: 31
A37: 32
A38: 33
A39: 34
A40: 35
A41: 36
A42: 37
A43: 38
A44: 39
A45: 40
A46: 41
A47: 42
A48: 43
A49: 44
A50: 45
A51: 46
A52: 47
A53: 48
A54: 49
A55: 50
A56: 51
A57: 52
A58: 53
A59: 54
A60: 55
A61: 56
A62: 57
A63: 58
A64: 59
A65: 60
A66: 61
A67: 62
A68: 63
A69: 64
A70: 65
A71: 66
A72: 67
A73: =+A72+1 -> 68
A74: 69
A75: 70
A76: 71
A77: 72
A78: 73
A79: 74
A80: 75
A81: 76
A82: 77
A83: 78
A84: 79
A85: 80
A86: 81
A87: 82
A88: 83
A89: 84
A90: 85
A91: 86
A92: 87
A93: 88
A94: 89
A95: 90
A96: 91
A97: 92
A98: 93
A99: 94
A100: 95
A101: 96
A102: 97
A103: 98
A104: 99
A105: 100
A106: 101
A107: 102
A108: 103
A109: 104
A110: 105
A111: 106
A112: 107
A113: 108
A114: 109
A115: 110
A116: 111
A117: 112
A118: 113
A119: 114
A120: 115
A121: 116
A122: 117
A123: 118
A124: 119
A125: 120
A126: 121
A127: 122
A128: 123
A129: 124
A130: 125
A131: 126
A132: 127
A133: 128
A134: 129
A135: 130
A136: 131
A137: =+A136+1 -> 132
A138: 133
A139: 134
A140: 135
A141: 136
A142: 137
A143: 138
A144: 139
A145: 140
A146: 141
A147: 142
A148: 143
A149: 144
A150: 145
A151: 146
A152: 147
A153: 148
A154: 149
A155: 150
A156: 151
A157: 152
A158: 153
A159: 154
A160: 155
A161: 156
A162: 157
A163: 158
A164: 159
A165: 160
A166: 161
A167: 162
A168: 163
A169: 164
A170: 165
A171: 166
A172: 167
A173: 168
A174: 169
A175: 170
A176: 171
A177: 172
A178: 173
A179: 174
A180: 175
A181: 176
A182: 177
A183: 178
A184: 179
A185: 180
A186: 181
A187: 182
A188: 183
A189: 184
A190: 185
A191: 186
A192: 187
A193: 188
A194: 189
A195: 190
A196: 191
A197: 192
A198: 193
A199: 194
A200: 195
... 253 more rows

Sheet Project Priorization
B1: Project Priorization
B2: Project Title | C2: Location | D2: Brief Description | E2: Schedule | G2: Cost Estimate | H2: Source of Funding
E3: Start Date | F3: End Date | G3: $
A4: Column1 | B4: Column2 | C4: Column3 | D4: Column4 | E4: Column5 | F4: Column6 | G4: Column7 | H4: Column8
A5: 1
A6: =+A5+1 -> 2
A7: =+A6+1 -> 3
A8: 4
A9: 5
A10: 6
A11: 7
A12: 8
A13: 9
A14: 10
A15: 11
A16: 12
A17: 13
A18: 14
A19: 15
A20: 16
A21: 17
A22: 18
A23: 19
A24: 20
A25: 21
A26: 22
A27: 23
A28: 24
A29: 25
A30: 26
A31: 27
A32: 28
A33: 29
A34: 30
A35: 31
A36: 32
A37: 33
A38: 34
A39: 35
A40: 36
A41: 37
A42: 38
A43: 39
A44: 40
A45: 41
A46: 42
A47: 43
A48: 44
A49: 45
A50: 46
A51: 47
A52: 48
A53: 49
A54: 50
A55: 51
A56: 52
A57: 53
A58: 54
A59: 55
A60: 56
A61: 57
A62: 58
A63: 59
A64: 60
A65: 61
A66: 62
A67: 63
A68: 64
A69: 65
A70: 66
A71: =+A70+1 -> 67
A72: 68
A73: 69
A74: 70
A75: 71
A76: 72
A77: 73
A78: 74
A79: 75
A80: 76
A81: 77
A82: 78
A83: 79
A84: 80
A85: 81
A86: 82
A87: 83
A88: 84
A89: 85
A90: 86
A91: 87
A92: 88
A93: 89
A94: 90
A95: 91
A96: 92
A97: 93
A98: 94
A99: 95
A100: 96
A101: 97
A102: 98
A103: 99
A104: 100
A105: 101
A106: 102
A107: 103
A108: 104
A109: 105
A110: 106
A111: 107
A112: 108
A113: 109
A114: 110
A115: 111
A116: 112
A117: 113
A118: 114
A119: 115
A120: 116
A121: 117
A122: 118
A123: 119
A124: 120
A125: 121
A126: 122
A127: 123
A128: 124
A129: 125
A130: 126
A131: 127
A132: 128
A133: 129
A134: 130
A135: =+A134+1 -> 131
A136: 132
A137: 133
A138: 134
A139: 135
A140: 136
A141: 137
A142: 138
A143: 139
A144: 140
A145: 141
A146: 142
A147: 143
A148: 144
A149: 145
A150: 146
A151: 147
A152: 148
A153: 149
A154: 150
A155: 151
A156: 152
A157: 153
A158: 154
A159: 155
A160: 156
A161: 157
A162: 158
A163: 159
A164: 160
A165: 161
A166: 162
A167: 163
A168: 164
A169: 165
A170: 166
A171: 167
A172: 168
A173: 169
A174: 170
A175: 171
A176: 172
A177: 173
A178: 174
A179: 175
A180: 176
A181: 177
A182: 178
A183: 179
A184: 180
A185: 181
A186: 182
A187: 183
A188: 184
A189: 185
A190: 186
A191: 187
A192: 188
A193: 189
A194: 190
A195: 191
A196: 192
A197: 193
A198: 194
A199: =+A198+1 -> 195
A200: 196
... 251 more rows

Sheet Funding Plan
B1: V. Funding Plan
B2: Project Title | C2: Overall Project Budget | D2: Available Funding Amount | E2: Available Funding Source | F2: Unfunded Amount
C3: $ | D3: $ | F3: $
A4: Column1 | B4: Column2 | C4: Column3 | D4: Column4 | E4: Column5 | F4: Column6
A5: 1
A6: =+A5+1 -> 2
A7: =+A6+1 -> 3
A8: 4
A9: 5
A10: 6
A11: 7
A12: 8
A13: 9
A14: 10
A15: 11
A16: 12
A17: 13
A18: 14
A19: 15
A20: 16
A21: 17
A22: 18
A23: 19
A24: 20
A25: 21
A26: 22
A27: 23
A28: 24
A29: 25
A30: 26
A31: 27
A32: 28
A33: 29
A34: 30
A35: 31
A36: 32
A37: 33
A38: 34
A39: 35
A40: 36
A41: 37
A42: 38
A43: 39
A44: 40
A45: 41
A46: 42
A47: 43
A48: 44
A49: 45
A50: 46
A51: 47
A52: 48
A53: 49
A54: 50
A55: 51
A56: 52
A57: 53
A58: 54
A59: 55
A60: 56
A61: 57
A62: 58
A63: 59
A64: 60
A65: 61
A66: 62
A67: 63
A68: 64
A69: 65
A70: 66
A71: =+A70+1 -> 67
A72: 68
A73: 69
A74: 70
A75: 71
A76: 72
A77: 73
A78: 74
A79: 75
A80: 76
A81: 77
A82: 78
A83: 79
A84: 80
A85: 81
A86: 82
A87: 83
A88: 84
A89: 85
A90: 86
A91: 87
A92: 88
A93: 89
A94: 90
A95: 91
A96: 92
A97: 93
A98: 94
A99: 95
A100: 96
A101: 97
A102: 98
A103: 99
A104: 100
A105: 101
A106: 102
A107: 103
A108: 104
A109: 105
A110: 106
A111: 107
A112: 108
A113: 109
A114: 110
A115: 111
A116: 112
A117: 113
A118: 114
A119: 115
A120: 116
A121: 117
A122: 118
A123: 119
A124: 120
A125: 121
A126: 122
A127: 123
A128: 124
A129: 125
A130: 126
A131: 127
A132: 128
A133: 129
A134: 130
A135: =+A134+1 -> 131
A136: 132
A137: 133
A138: 134
A139: 135
A140: 136
A141: 137
A142: 138
A143: 139
A144: 140
A145: 141
A146: 142
A147: 143
A148: 144
A149: 145
A150: 146
A151: 147
A152: 148
A153: 149
A154: 150
A155: 151
A156: 152
A157: 153
A158: 154
A159: 155
A160: 156
A161: 157
A162: 158
A163: 159
A164: 160
A165: 161
A166: 162
A167: 163
A168: 164
A169: 165
A170: 166
A171: 167
A172: 168
A173: 169
A174: 170
A175: 171
A176: 172
A177: 173
A178: 174
A179: 175
A180: 176
A181: 177
A182: 178
A183: 179
A184: 180
A185: 181
A186: 182
A187: 183
A188: 184
A189: 185
A190: 186
A191: 187
A192: 188
A193: 189
A194: 190
A195: 191
A196: 192
A197: 193
A198: 194
A199: =+A198+1 -> 195
A200: 196
... 251 more rows

Sheet Certification
B1: VI. COPIES OF SUPPORTING DOCUMENTATION
B2: All regional planning agencies must provide copies of the supporting documentation listed below. Copies should be attached to this form.
B3: 1. | C3: Regional planning agency organization chart (including names of members)
B4: 2. | C4: Sewer use ordinance
B5: 3. | C5: Current user rate schedule
B6: 4. | C6: Wastewater system maps- (a) One (1) up-to-date map, suitable for photocopying, should indicate the planning area boundary, service area boundary, watershed boundaries, county boundaries, adjacent populated places, cities and/or towns, surface waterbodies, drinking water supply areas; (b) Up-to-date map(s), suitable for photocopying, including locations of wastewater treatment facilities (including package treatment plant(s)), discharge location(s), collection lines (gravity, force main, interceptors), and pump stations.
B7: 5. | C7: A list of wastewater systems studies since the last planning update (e.g., Infiltration& inflow reports, CSO reports, sewer system evaluation studies, on-site/cluster system reports, other relevant reports.)
B8: VII. CERTIFICATION. Signature is required to guarantee the validity of the data.
B9: This section must be certified by an elected official (e.g. Mayor, County Judge Executive) AND a designated official representing the regional planning agency (e.g. Kentucky licensed professional engineer employed by or under contract with the regional planning agency, Public Works Director, General Manager, Superintendent)
B10: Local Elected Official
B11: I certify the information entered in this form is accurate to the best of my knowledge.
B13: Name:
B15: Title:
B17: Signature: | D17: Date:
B19: Designated Official
B20: I certify the information entered in this form is accurate to the best of my knowledge.
B22: Name:
B24: Title:
B26: Signature: | D26: Date:
B28: SEND COMPLETED FORMS TO:
B30: Division of Water
B31: Wastewater Planning Section
B32: 200 Fair Oaks Lane
B33: Frankfort, Kentucky 40601
B35: For additional information, call (502) 564-3410.

Sheet Sheet4
